[Event "XVII MetLife Najdorf Open 2017"]
[Site "Warsaw"]
[Date "2017.07.17"]
[Round "9"]
[White "Zylka, Stanislaw"]
[Black "Kubicka, Anna"]
[Result "1-0"]
[ECO "E69"]
[WhiteElo "2368"]
[BlackElo "2152"]
[Annotator "NA"]
[PlyCount "161"]
[EventDate "2017.??.??"]
[EventType "swiss"]
[EventCountry "POL"]
[SourceTitle "playchess.com"]
[Source "ChessBase"]
[SourceQuality "1"]
[TimeControl "40/5400+30:1800+30"]

1. d4 {[%emt 0:00:00]} Nf6 {[%emt 0:00:22]} 2. Nf3 {[%emt 0:00:00]} g6 {[%emt 0:00:31]} 3. c4 {[%emt 0:00:00]} Bg7 {[%emt 0:00:15]} 4. g3 {[%emt 0:00:00]} O-O {[%emt 0:00:08]} 5. Bg2 {[%emt 0:00:01]} d6 {[%emt 0:00:05]} 6. O-O {[%emt 0:00:07]} Nbd7 {[%emt 0:00:05]} 7. Nc3 {[%emt 0:00:09]} e5 {[%emt 0:00:32]} 8. e4 {[%emt 0:00:57]} c6 {[%emt 0:00:24]} 9. h3 {[%emt 0:00:31]} Re8 {[%emt 0:00:17]} 10. Re1 {[%emt 0:00:11]} Qc7 {[%emt 0:00:08]} 11. Be3 {[%emt 0:00:55]} a6 {[%emt 0:00:49]} 12. a4 {[%emt 0:07:55] E69: King's Indian: Fianchetto: 6...Nbd7 7 0-0 e5 8 e4 c6 9 h3} a5 {[%emt 0:00:06]} 13. Qc2 {[%emt 0:00:16]} exd4 {[%emt 0:01:22]} 14. Nxd4 {[%emt 0:00:11]} Nc5 {[%emt 0:00:27]} 15. Rad1 {[%emt 0:01:24]} Bd7 {[%emt 0:11:50]} 16. Bf4 $146 {[%emt 0:16:18]} ({Predecessor:} 16. f4 Rad8 17. Nb3 b6 {1-0 (42) Matnadze,A (2342)-Martinez Lopez,I (2222) Barcelona 2016}) 16... Nh5 {[%emt 0:11:09]} 17. Be3 {[%emt 0:15:48]} Rad8 {[%emt 0:07:50]} 18. g4 {[%emt 0:01:57]} Nf6 {[%emt 0:00:06]} 19. Bf4 {[%emt 0:00:52]} Bc8 {[%emt 0:10:48]} 20. Re2 {[%emt 0:13:41]} Nfd7 {[%emt 0:04:00]} 21. Ndb5 {[%emt 0:10:04]} cxb5 {[%emt 0:03:13]} 22. Nxb5 {[%emt 0:01:01]} Qb8 {[%emt 0:01:06]} 23. Bxd6 {[%emt 0:00:19]} Qa8 {[%emt 0:00:19]} 24. Red2 {[%emt 0:11:24]} Ne6 {[%emt 0:09:10]} 25. f4 {[%emt 0:01:39]} Bh6 {[%emt 0:03:15]} 26. Rf2 {[%emt 0:04:52]} Qa6 {[%emt 0:14:23]} 27. Kh1 {[%emt 0:06:22]} Qb6 {[%emt 0:02:32]} 28. g5 {[%emt 0:02:29]} Bf8 {[%emt 0:02:04]} 29. f5 {[%emt 0:00:25]} Nxg5 {[%emt 0:01:13]} 30. Bc7 {[%emt 0:00:34]} Qe3 {[%emt 0:01:18]} 31. Re2 {[%emt 0:00:17]} Qc5 {[%emt 0:02:15]} 32. h4 {[%emt 0:01:00]} Qe7 {[%emt 0:08:30]} 33. hxg5 {[%emt 0:01:30]} Qxg5 {[%emt 0:00:11]} 34. Rd3 {[%emt 0:02:11]} Ne5 {[%emt 0:01:20]} 35. Rxd8 {[%emt 0:00:51]} Qh4+ {[%emt 0:01:25]} 36. Kg1 {[%emt 0:00:01]} Rxd8 {[%emt 0:00:17]} 37. Bxe5 {[%emt 0:00:44]} Bc5+ {[%emt 0:00:23]} 38. Kf1 {[%emt 0:00:37]} f6 {[%emt 0:01:30]} 39. Bc7 {[%emt 0:00:32]} Rd7 {[%emt 0:00:51]} 40. Bb8 {[%emt 0:00:00]} Qg5 {[%emt 0:01:33]} 41. Bh2 {[%emt 0:09:54]} Rd8 {[%emt 0:02:11]} 42. Bg1 {[%emt 0:01:48]} Qf4+ {[%emt 0:10:53]} 43. Bf2 {[%emt 0:00:11]} gxf5 {[%emt 0:05:44]} 44. Kg1 {[%emt 0:01:25]} Bxf2+ {[%emt 0:02:23]} 45. Rxf2 {[%emt 0:00:11]} Qg4 {[%emt 0:02:15]} 46. Rd2 {[%emt 0:05:02]} Rxd2 {[%emt 0:00:05]} 47. Qxd2 {[%emt 0:00:09]} fxe4 {[%emt 0:00:23]} 48. Qd8+ {[%emt 0:02:35]} Kg7 {[%emt 0:01:30]} 49. Qe7+ {[%emt 0:00:10]} Kg8 {[%emt 0:00:19]} 50. Qxe4 {[%emt 0:01:20]} Qd1+ {[%emt 0:00:46]} 51. Bf1 {[%emt 0:00:14]} Qc1 {[%emt 0:05:54]} 52. Qe8+ {[%emt 0:03:11]} Kg7 {[%emt 0:00:04]} 53. Qe7+ {[%emt 0:04:06]} Kg6 {[%emt 0:01:22]} 54. Qe4+ {[%emt 0:00:21]} ({But not} 54. Qe8+ Kg5 $18) 54... Bf5 {[%emt 0:00:29]} 55. Qg2+ {[%emt 0:00:08]} Kh6 {[%emt 0:01:42]} 56. Nd6 {[%emt 0:01:57]} Qe3+ {[%emt 0:01:08]} 57. Qf2 {[%emt 0:00:20]} Qg5+ {[%emt 0:00:04]} 58. Bg2 {[%emt 0:00:14]} Bg6 {[%emt 0:00:18]} 59. Qd4 {[%emt 0:02:15]} b6 {[%emt 0:02:16]} 60. Kf2 {[%emt 0:00:16]} Kg7 {[%emt 0:00:01]} 61. Bf3 {[%emt 0:00:40]} h5 {[%emt 0:00:40]} 62. Qe3 {[%emt 0:02:23]} Qh4+ {[%emt 0:00:06]} 63. Kg2 {[%emt 0:00:07]} Kh7 {[%emt 0:01:48]} (63... Qg5+ $142 64. Qxg5 fxg5) 64. Ne4 {[%emt 0:00:40]} Kg7 {[%emt 0:00:35]} 65. b3 {[%emt 0:01:12]} Bf5 {[%emt 0:00:28]} 66. Ng3 {[%emt 0:01:06]} Qh3+ {[%emt 0:00:59]} 67. Kf2 {[%emt 0:00:07]} Qh2+ {[%emt 0:00:03]} 68. Bg2 {[%emt 0:00:10]} Bg6 {[%emt 0:01:10]} 69. Qf4 {[%emt 0:01:38]} Kf7 {[%emt 0:00:38]} 70. Qc7+ {[%emt 0:00:45]} Kg8 {[%emt 0:00:28]} 71. Qxb6 {[%emt 0:00:37]} h4 {[%emt 0:00:32]} 72. Ne2 {[%emt 0:00:12]} Qe5 {[%emt 0:00:34]} 73. Qd4 {[%emt 0:00:50]} Qf5+ $18 {[%emt 0:00:07]} 74. Qf4 {[%emt 0:00:19]} Qc5+ {[%emt 0:00:28]} 75. Nd4 {[%emt 0:00:18]} Qb4 {[%emt 0:00:40]} 76. Qxf6 {[%emt 0:00:34]} Qd2+ {[%emt 0:00:04]} 77. Ne2 {[%emt 0:00:16]} Bd3 {[%emt 0:01:13]} 78. Bd5+ {[%emt 0:00:14]} Kh7 {[%emt 0:00:05]} 79. Qxh4+ {[%emt 0:00:08]} Kg6 {[%emt 0:00:21]} 80. Be4+ {[%emt 0:00:13]} Bxe4 {[%emt 0:00:25]} 81. Qxe4+ {[%emt 0:00:12]} 1-0

[Event "XVII MetLife Najdorf Open 2017"]
[Site "Warsaw"]
[Date "2017.07.17"]
[Round "9"]
[White "Zujev, Oleg"]
[Black "Szostko, Jakub"]
[Result "1-0"]
[ECO "E61"]
[WhiteElo "2366"]
[BlackElo "2208"]
[Annotator "NA"]
[PlyCount "125"]
[EventDate "2017.??.??"]
[EventType "swiss"]
[EventCountry "POL"]
[SourceTitle "playchess.com"]
[Source "ChessBase"]
[SourceQuality "1"]
[TimeControl "40/5400+30:1800+30"]

1. d4 {[%emt 0:00:00]} Nf6 {[%emt 0:00:06]} 2. c4 {[%emt 0:00:00]} g6 {[%emt 0:00:09]} 3. Nc3 {[%emt 0:00:00]} Bg7 {[%emt 0:00:05]} 4. e4 {[%emt 0:00:00]} d6 {[%emt 0:00:10]} 5. f3 {[%emt 0:00:00]} O-O {[%emt 0:00:13]} 6. Be3 {[%emt 0:00:00]} c5 {[%emt 0:00:18]} 7. d5 {[%emt 0:00:00]} e6 {[%emt 0:00:30]} 8. Nge2 {[%emt 0:00:00]} exd5 {[%emt 0:00:40]} 9. cxd5 {[%emt 0:00:04]} a6 {[%emt 0:00:54]} 10. a4 {[%emt 0:00:04]} Nbd7 {[%emt 0:00:35]} 11. Ng3 {[%emt 0:00:08]} h5 {[%emt 0:00:30]} 12. Be2 {[%emt 0:00:29]} Ne5 {[%emt 0:00:50]} 13. O-O {[%emt 0:00:17]} Bd7 {[%emt 0:00:22]} 14. Qd2 {[%emt 0:15:13]} b5 {[%emt 0:05:15]} 15. axb5 {[%emt 0:05:38] A65: Modern Benoni: 6 e4} (15. h3 Rb8 16. Bg5 Re8 17. f4 Nc4 18. Bxc4 bxc4 19. e5 dxe5 20. f5 e4 21. Qf4 Bxf5 22. Nxf5 gxf5 23. Qxf5 {1-0 (31) Vocaturo,D (2583)-Morovic Fernandez,I (2554) Baku 2016}) 15... axb5 {[%emt 0:01:20]} 16. Nxb5 {[%emt 0:00:58]} Bxb5 {[%emt 0:01:55]} 17. Bxb5 {[%emt 0:00:28]} Qb6 {[%emt 0:00:48]} 18. Be2 {[%emt 0:01:18]} Rfb8 $146 {[%emt 0:03:24]} ({Predecessor:} 18... Rxa1 19. Rxa1 Rb8 20. Nf1 {½-½ (20) Schmidt,T (2344)-Morozov,D (2376) ICCF email 2014}) 19. Rxa8 {[%emt 0:02:48]} Rxa8 {[%emt 0:00:13]} 20. b4 {[%emt 0:01:32]} Qxb4 {[%emt 0:01:37]} 21. Qxb4 {[%emt 0:00:08]} cxb4 {[%emt 0:00:09]} 22. Rb1 {[%emt 0:00:10]} Rb8 {[%emt 0:05:20]} 23. Rb3 {[%emt 0:01:53]} Nfd7 {[%emt 0:15:20]} 24. Bd2 {[%emt 0:01:17]} Ra8 {[%emt 0:06:02]} 25. Rxb4 {[%emt 0:04:23]} Ra2 {[%emt 0:00:38]} 26. Nf1 $1 {[%emt 0:01:59]} Bf6 {[%emt 0:10:22]} 27. f4 {[%emt 0:04:45]} Ng4 {[%emt 0:01:40]} 28. Bxg4 {[%emt 0:03:24]} hxg4 {[%emt 0:00:28]} 29. Be3 {[%emt 0:01:32]} Kf8 {[%emt 0:06:50]} 30. Bd4 {[%emt 0:20:39]} Re2 {[%emt 0:04:37]} 31. Ng3 {[%emt 0:00:45]} Rd2 $11 {[%emt 0:00:58]} 32. Be3 {[%emt 0:01:20]} Rd1+ {[%emt 0:00:39]} 33. Kf2 {[%emt 0:03:03]} Bh4 {[%emt 0:02:22]} 34. Ke2 {[%emt 0:00:45]} Ra1 {[%emt 0:04:38]} 35. Bd4 {[%emt 0:19:56]} Ra2+ {[%emt 0:01:33]} 36. Kf1 {[%emt 0:03:01]} Bxg3 {[%emt 0:10:14]} 37. hxg3 {[%emt 0:00:05]} f6 {[%emt 0:00:19]} 38. Bb2 {[%emt 0:02:14]} Ra7 {[%emt 0:03:44]} 39. Ke2 {[%emt 0:01:39]} Ke7 {[%emt 0:00:23]} 40. Ke3 {[%emt 0:00:00]} Rc7 {[%emt 0:00:59]} 41. Kd3 {[%emt 0:09:44]} Nc5+ {[%emt 0:01:18]} 42. Kd4 {[%emt 0:02:37]} Nd7 {[%emt 0:00:30]} 43. Ba3 {[%emt 0:05:36]} Rc2 {[%emt 0:02:17]} 44. Rb2 {[%emt 0:00:27]} Rc1 {[%emt 0:03:48]} 45. Re2 {[%emt 0:02:28]} Rd1+ {[%emt 0:03:51]} 46. Kc4 {[%emt 0:00:55]} Ra1 {[%emt 0:05:55]} 47. Re3 {[%emt 0:00:51]} Nb6+ {[%emt 0:01:08]} 48. Kb5 {[%emt 0:02:26]} Rb1+ {[%emt 0:00:13]} 49. Bb4 {[%emt 0:00:42]} Kd7 {[%emt 0:00:51]} 50. Ra3 {[%emt 0:05:16]} Nc8 {[%emt 0:00:14]} 51. Ra6 {[%emt 0:00:17]} Rb2 {[%emt 0:07:50]} 52. e5 {[%emt 0:00:28]} fxe5 {[%emt 0:00:08]} 53. fxe5 {[%emt 0:00:04]} dxe5 {[%emt 0:00:05]} 54. Rxg6 {[%emt 0:00:15]} Rxg2 {[%emt 0:00:40]} 55. Rg7+ {[%emt 0:00:13]} Ke8 {[%emt 0:00:13]} 56. Kc6 {[%emt 0:01:31]} Rxg3 {[%emt 0:00:52]} 57. Rg8+ {[%emt 0:00:17]} Kf7 {[%emt 0:00:05]} 58. Rf8+ {[%emt 0:02:46]} Kg6 {[%emt 0:00:25]} 59. Rxc8 {[%emt 0:00:09]} Rb3 {[%emt 0:00:04]} 60. Bc5 {[%emt 0:00:17]} g3 {[%emt 0:00:11]} 61. d6 {[%emt 0:00:28]} g2 {[%emt 0:00:56]} 62. Rg8+ {[%emt 0:00:09]} Kf7 {[%emt 0:00:06]} 63. Rxg2 {[%emt 0:00:06]} 1-0

[Event "XVII MetLife Najdorf Open 2017"]
[Site "Warsaw"]
[Date "2017.07.17"]
[Round "9"]
[White "Bartel, Michal"]
[Black "Karwowski, Kacper"]
[Result "1/2-1/2"]
[ECO "B51"]
[WhiteElo "2343"]
[BlackElo "2221"]
[Annotator "NA"]
[PlyCount "78"]
[EventDate "2017.??.??"]
[EventType "swiss"]
[EventCountry "POL"]
[SourceTitle "playchess.com"]
[Source "ChessBase"]
[SourceQuality "1"]
[TimeControl "40/5400+30:1800+30"]

1. e4 {[%emt 0:00:00]} c5 {[%emt 0:00:21]} 2. Nf3 {[%emt 0:00:00]} d6 {[%emt 0:00:10]} 3. Bb5+ {[%emt 0:00:00]} Nc6 {[%emt 0:00:12]} 4. O-O {[%emt 0:00:02]} Bd7 {[%emt 0:00:26]} 5. Re1 {[%emt 0:03:11]} Nf6 {[%emt 0:00:36]} 6. c3 {[%emt 0:00:39]} a6 {[%emt 0:00:11] B51: Sicilian: Moscow Variation (3 Bb5+) without 3...Bd7} 7. Bc4 {[%emt 0:01:30]} (7. Bf1 Bg4 8. h3 Bxf3 9. Qxf3 g6 10. d3 Bg7 11. Be3 O-O 12. Nd2 Nd7 13. Qd1 b5 14. a3 e6 15. Nf3 Nce5 16. d4 Nxf3+ 17. Qxf3 Qc7 18. Qd1 Nb6 19. dxc5 dxc5 20. Qc2 c4 21. Rad1 Rfd8 22. Bg5 Rxd1 23. Rxd1 h6 24. Be3 {½-½ (24) Wang,H (2683)-Bu,X (2711) Ho Chi Minh City 2017}) 7... b5 {[%emt 0:11:24]} 8. Bf1 {[%emt 0:00:16]} Bg4 {[%emt 0:02:01]} 9. d4 {[%emt 0:00:32]} Bxf3 {[%emt 0:00:32]} 10. gxf3 {[%emt 0:00:06]} c4 $146 {[%emt 0:20:58]} ({Predecessor:} 10... e5 11. d5 Na5 12. b4 Nb7 13. a4 c4 14. f4 {1-0 (43) Indjic,A (2419)-Abramovic,B (2385) Belgrade 2014}) 11. b3 {[%emt 0:04:55]} d5 {[%emt 0:06:03]} 12. a4 {[%emt 0:02:02]} Na5 {[%emt 0:03:54]} 13. axb5 {[%emt 0:07:21]} axb5 {[%emt 0:03:46]} 14. bxc4 {[%emt 0:07:32]} dxc4 {[%emt 0:02:20]} 15. d5 {[%emt 0:05:01]} e6 {[%emt 0:15:19]} (15... Nd7 $16 {might work better.}) 16. Bh3 {[%emt 0:08:23]} Bc5 {[%emt 0:03:15]} 17. dxe6 {[%emt 0:00:39]} fxe6 {[%emt 0:00:08]} 18. Qxd8+ {[%emt 0:01:11]} Kxd8 {[%emt 0:00:06]} 19. Bxe6 {[%emt 0:00:05]} Ke7 {[%emt 0:00:15]} 20. Bh3 {[%emt 0:00:10]} h6 {[%emt 0:07:23]} 21. Nd2 {[%emt 0:01:31]} Nh5 {[%emt 0:04:43]} 22. e5 {[%emt 0:03:13]} Nf4 {[%emt 0:01:42]} 23. Bf1 {[%emt 0:00:06]} g5 {[%emt 0:00:38]} 24. Ne4 {[%emt 0:00:54]} Nb3 {[%emt 0:02:16]} 25. Rxa8 {[%emt 0:00:16]} Rxa8 {[%emt 0:00:04]} 26. Nxc5 {[%emt 0:01:38]} Nxc5 {[%emt 0:00:05]} 27. Be3 {[%emt 0:00:04]} Nb3 $11 {[%emt 0:06:12]} 28. h4 {[%emt 0:02:44]} Ra1 {[%emt 0:01:28]} 29. Rxa1 {[%emt 0:00:34]} Nxa1 {[%emt 0:00:05]} 30. Kh2 {[%emt 0:00:06]} Ke6 {[%emt 0:01:52]} 31. Kg3 {[%emt 0:00:14]} Kf5 {[%emt 0:02:54]} 32. e6 {[%emt 0:02:52]} gxh4+ {[%emt 0:04:28]} 33. Kxh4 {[%emt 0:00:12]} Nxe6 {[%emt 0:00:02]} 34. Bxh6 {[%emt 0:00:18]} Nc2 {[%emt 0:00:53]} 35. Bh3+ {[%emt 0:00:15]} Kf6 {[%emt 0:00:13]} 36. f4 {[%emt 0:00:24]} b4 {[%emt 0:00:47]} 37. cxb4 {[%emt 0:00:07]} Nxb4 {[%emt 0:00:22]} 38. f5 {[%emt 0:00:45]} Nd4 {[%emt 0:00:50]} 39. Bg5+ {[%emt 0:00:18]} Kf7 {[%emt 0:00:26]} 1/2-1/2

[Event "XVII MetLife Najdorf Open 2017"]
[Site "Warsaw"]
[Date "2017.07.17"]
[Round "9"]
[White "Pacan-Milej, Kosma"]
[Black "AlHuwar, Jasem"]
[Result "1-0"]
[ECO "B06"]
[WhiteElo "2332"]
[BlackElo "2275"]
[Annotator "NA"]
[PlyCount "93"]
[EventDate "2017.??.??"]
[EventType "swiss"]
[EventCountry "POL"]
[SourceTitle "playchess.com"]
[Source "ChessBase"]
[SourceQuality "1"]
[TimeControl "40/5400+30:1800+30"]

1. d4 {[%emt 0:00:00]} g6 {[%emt 0:04:46]} 2. e4 {[%emt 0:00:00]} Bg7 {[%emt 0:00:06]} 3. Nc3 {[%emt 0:00:00]} d6 {[%emt 0:00:03]} 4. f4 {[%emt 0:00:00]} Nf6 {[%emt 0:00:08]} 5. Nf3 {[%emt 0:00:00]} O-O {[%emt 0:00:07]} 6. e5 {[%emt 0:00:00]} Nfd7 {[%emt 0:00:12]} 7. Bc4 {[%emt 0:00:32]} Nb6 {[%emt 0:01:24]} 8. Bb3 {[%emt 0:00:12]} c5 {[%emt 0:00:40] B09: Pirc Defence: Austrian Attack} (8... Nc6 9. a4 a5 10. Be3 Nb4 11. O-O c6 12. Ne4 N4d5 13. Bd2 Kh8 14. Qe1 Bf5 15. Ng3 Be6 16. Ng5 Nc7 17. Bxa5 Bxb3 18. Bxb6 {½-½ (57) Grandelius,N (2642)-Bezold,M (2502) Germany 2017}) 9. dxc5 {[%emt 0:25:16]} dxc5 {[%emt 0:00:22]} 10. Qxd8 {[%emt 0:00:06]} Rxd8 {[%emt 0:00:03]} 11. Be3 {[%emt 0:04:35]} Na6 {[%emt 0:00:09]} 12. Ng5 {[%emt 0:31:41]} Rf8 $146 {[%emt 0:00:12]} ({Predecessor:} 12... c4 13. Bxb6 axb6 14. Bxc4 Rd4 15. Bxf7+ Kf8 16. O-O {1-0 (33) Smith,A (2449)-Petersen,P (2197) Helsingor 2015}) 13. Nd5 {[%emt 0:11:46]} Nxd5 {[%emt 0:01:00]} 14. Bxd5 {[%emt 0:00:03]} h6 {[%emt 0:02:25]} 15. Nf3 {[%emt 0:00:59]} Rb8 {[%emt 0:29:50]} 16. O-O-O {[%emt 0:00:17]} b6 {[%emt 0:00:38]} 17. c3 {[%emt 0:00:23]} Nc7 {[%emt 0:00:22]} 18. Be4 {[%emt 0:07:21]} Be6 {[%emt 0:00:10]} 19. b3 {[%emt 0:01:02]} a5 $14 {[%emt 0:04:10]} 20. Kc2 {[%emt 0:03:56]} Rfc8 {[%emt 0:01:41]} 21. h3 {[%emt 0:09:50]} Rd8 {[%emt 0:02:45]} 22. c4 {[%emt 0:00:22]} b5 {[%emt 0:00:55]} 23. Rxd8+ {[%emt 0:01:40]} Rxd8 {[%emt 0:00:01]} 24. Kc3 {[%emt 0:00:30]} bxc4 {[%emt 0:04:14]} 25. bxc4 {[%emt 0:00:02]} Na6 {[%emt 0:00:05]} 26. Rb1 {[%emt 0:01:31]} f5 {[%emt 0:00:09]} 27. exf6 {[%emt 0:00:44]} exf6 {[%emt 0:02:25]} 28. Bxg6 {[%emt 0:00:14]} f5+ {[%emt 0:00:24]} 29. Ne5 {[%emt 0:00:04]} Nb4 {[%emt 0:00:24]} 30. Bxc5 {[%emt 0:01:01]} Rd3+ {[%emt 0:00:21]} 31. Kb2 {[%emt 0:00:07]} Rg3 {[%emt 0:02:45]} 32. Bxb4 {[%emt 0:00:25]} axb4 {[%emt 0:00:12]} 33. Bh5 {[%emt 0:00:47]} Rxg2+ {[%emt 0:02:00]} 34. Kb3 {[%emt 0:00:05]} Rg3+ {[%emt 0:01:49]} 35. Kxb4 {[%emt 0:01:02]} Rxh3 {[%emt 0:00:05]} 36. Bd1 {[%emt 0:00:27]} Re3 {[%emt 0:00:42]} 37. Bb3 Bxe5 {[%emt 0:05:39]} 38. fxe5 {[%emt 0:00:39]} f4 {[%emt 0:00:05]} 39. c5 {[%emt 0:00:48]} Bxb3 {[%emt 0:00:37]} 40. axb3 {[%emt 0:00:00]} Kf8 {[%emt 0:04:58]} 41. c6 {[%emt 0:03:28]} Ke8 {[%emt 0:00:11]} 42. Rd1 {[%emt 0:02:41]} Re4+ {[%emt 0:00:30]} 43. Kc5 {[%emt 0:03:09]} Rxe5+ {[%emt 0:00:06]} 44. Kd6 {[%emt 0:01:30]} Re3 {[%emt 0:00:10]} 45. c7 {[%emt 0:00:33]} Rc3 {[%emt 0:00:08]} 46. Rd4 {[%emt 0:00:24]} f3 {[%emt 0:00:16]} 47. Rc4 {[%emt 0:00:38]} 1-0

[Event "XVII MetLife Najdorf Open 2017"]
[Site "Warsaw"]
[Date "2017.07.17"]
[Round "9"]
[White "Baskin, Robert"]
[Black "Mis, Mieszko"]
[Result "1/2-1/2"]
[ECO "B06"]
[WhiteElo "2330"]
[BlackElo "2137"]
[Annotator "NA"]
[PlyCount "46"]
[EventDate "2017.??.??"]
[EventType "swiss"]
[EventCountry "POL"]
[SourceTitle "playchess.com"]
[Source "ChessBase"]
[SourceQuality "1"]
[TimeControl "40/5400+30:1800+30"]

1. e4 g6 2. d4 Bg7 3. Nf3 d6 4. Bc4 a6 5. a4 e6 6. Nbd2 Ne7 7. Qe2 Nd7 8. Nf1 b6 9. Ng3 Bb7 10. Bb3 c5 11. c3 Qc7 12. O-O O-O 13. h4 Nc6 14. Be3 Na5 15. Ba2 c4 16. h5 f5 17. exf5 exf5 18. Bf4 Rae8 19. Qd1 Nf6 20. Nh4 Nd5 21. Qd2 Bf6 22. Nf3 $15 Qc6 23. Bh6 Rf7 1/2-1/2

[Event "XVII MetLife Najdorf Open 2017"]
[Site "Warsaw"]
[Date "2017.07.17"]
[Round "9"]
[White "Eggink, Ryszard"]
[Black "Krstulovic, Alex"]
[Result "1/2-1/2"]
[ECO "C77"]
[WhiteElo "2322"]
[BlackElo "2252"]
[Annotator "NA"]
[PlyCount "56"]
[EventDate "2017.??.??"]
[EventType "swiss"]
[EventCountry "POL"]
[SourceTitle "playchess.com"]
[Source "ChessBase"]
[SourceQuality "1"]
[TimeControl "40/5400+30:1800+30"]

1. e4 {[%emt 0:04:50]} e5 {[%emt 0:00:12]} 2. Nf3 {[%emt 0:00:36]} Nc6 {[%emt 0:00:09]} 3. Bb5 {[%emt 0:00:04]} a6 {[%emt 0:00:13]} 4. Ba4 {[%emt 0:00:04]} d6 {[%emt 0:00:20]} 5. O-O {[%emt 0:00:18]} Nf6 {[%emt 0:00:58]} 6. d3 {[%emt 0:00:42]} Bd7 {[%emt 0:00:18]} 7. c3 {[%emt 0:01:14]} g6 {[%emt 0:00:56]} 8. Nbd2 {[%emt 0:01:00]} Bg7 {[%emt 0:00:26]} 9. d4 {[%emt 0:02:16]} b5 {[%emt 0:01:05] C77: Ruy Lopez: 3...a6 4 Ba4 Nf6, unusual lines} 10. Bb3 {[%emt 0:01:04]} O-O {[%emt 0:00:47]} 11. Re1 {[%emt 0:00:25]} Re8 $146 {[%emt 0:01:00]} ({Predecessor:} 11... Nh5 12. Nf1 Na5 13. Bc2 c5 14. Ne3 exd4 15. cxd4 {0-1 (60) Pisk,P (2366)-Dolezal,R (2421) Czechia 2008}) 12. h3 {[%emt 0:05:52]} Na5 {[%emt 0:01:25]} 13. Bc2 {[%emt 0:06:23]} c5 {[%emt 0:00:28]} 14. Nf1 {[%emt 0:05:46]} h6 {[%emt 0:01:57]} 15. a4 {[%emt 0:04:36]} Rc8 {[%emt 0:09:15]} 16. axb5 {[%emt 0:00:49]} axb5 {[%emt 0:00:06]} 17. dxe5 {[%emt 0:03:35]} dxe5 {[%emt 0:00:36]} 18. Be3 {[%emt 0:02:23]} Nc4 {[%emt 0:03:15]} 19. Bc1 {[%emt 0:06:41]} Qc7 {[%emt 0:02:01]} 20. b3 {[%emt 0:01:55]} Nd6 {[%emt 0:03:25]} 21. Qe2 {[%emt 0:03:04]} Bc6 {[%emt 0:03:44]} 22. Ng3 {[%emt 0:00:57]} c4 {[%emt 0:09:41]} 23. b4 {[%emt 0:05:53]} Qb7 {[%emt 0:04:54]} 24. Qe3 {[%emt 0:13:00]} Bf8 {[%emt 0:19:17]} 25. Ra7 {[%emt 0:02:39]} Qb8 {[%emt 0:00:06]} 26. Ra5 {[%emt 0:00:33]} Qb7 $11 {[%emt 0:05:18]} 27. Ra7 {[%emt 0:01:55]} Qb8 {[%emt 0:00:18]} 28. Ra5 {[%emt 0:00:08]} Qb7 {[%emt 0:00:07]} 1/2-1/2

[Event "XVII MetLife Najdorf Open 2017"]
[Site "Warsaw"]
[Date "2017.07.17"]
[Round "9"]
[White "Urazayev, Arystanbek"]
[Black "Kosakowski, Jakub"]
[Result "1-0"]
[ECO "B90"]
[WhiteElo "2322"]
[BlackElo "2366"]
[Annotator "NA"]
[PlyCount "51"]
[EventDate "2017.??.??"]
[EventType "swiss"]
[EventCountry "POL"]
[SourceTitle "playchess.com"]
[Source "ChessBase"]
[SourceQuality "1"]
[TimeControl "40/5400+30:1800+30"]

1. e4 {[%emt 0:00:00]} c5 {[%emt 0:00:08]} 2. Nf3 {[%emt 0:00:18]} d6 {[%emt 0:00:10]} 3. d4 {[%emt 0:01:57]} cxd4 {[%emt 0:00:09]} 4. Nxd4 {[%emt 0:00:04]} Nf6 {[%emt 0:00:08]} 5. Nc3 {[%emt 0:00:07]} a6 {[%emt 0:00:05]} 6. Be3 {[%emt 0:02:55]} e5 {[%emt 0:00:12]} 7. Nb3 {[%emt 0:03:40]} Be6 {[%emt 0:00:11]} 8. f3 {[%emt 0:00:38]} Be7 {[%emt 0:00:08]} 9. Qd2 {[%emt 0:01:13]} O-O {[%emt 0:00:12]} 10. O-O-O {[%emt 0:03:02]} Nbd7 {[%emt 0:00:09]} 11. g4 {[%emt 0:01:05]} b5 {[%emt 0:00:07]} 12. g5 {[%emt 0:01:59]} b4 {[%emt 0:00:19]} 13. Ne2 {[%emt 0:01:14]} Ne8 {[%emt 0:00:10]} 14. f4 {[%emt 0:04:27]} a5 {[%emt 0:00:23]} 15. f5 {[%emt 0:00:48] B90: Sicilian Najdorf: Unusual White 6th moves, 6 Be3 Ng4 and 6 Be3 e5} a4 {[%emt 0:00:27]} 16. fxe6 {[%emt 0:00:38]} axb3 {[%emt 0:00:08]} 17. exf7+ {[%emt 0:00:51]} Rxf7 {[%emt 0:00:07]} 18. Kb1 {[%emt 0:00:11]} bxc2+ {[%emt 0:01:08]} 19. Qxc2 {[%emt 0:00:43]} Bxg5 {[%emt 0:05:49]} 20. Bxg5 {[%emt 0:00:48]} Qxg5 {[%emt 0:00:10]} 21. Ng3 {[%emt 0:00:03]} Nb6 {[%emt 0:15:52]} (21... Kh8 22. Bc4 Rf8 {1-0 (40) Duda,J (2678)-Wojtaszek,R (2746) Germany 2017}) 22. Qb3 {[%emt 0:20:36]} d5 {[%emt 0:14:38]} 23. Qxb4 {[%emt 0:11:14]} Rb8 $146 {[%emt 0:24:36]} 24. Rxd5 {[%emt 0:18:14]} ({Resist} 24. exd5 $6 Qf4 $14) 24... Rfb7 $16 {[%emt 0:03:58]} 25. Rb5 {[%emt 0:02:24]} Kh8 {[%emt 0:02:57]} 26. Qf8# {[%emt 0:00:22]} 1-0